[Event "IND-ch Women 2019"]
[Site "Karaikkudi"]
[Date "2019.07.23"]
[Round "7.18"]
[White "Varshini, V."]
[Black "Sunyuktha C M N"]
[Result "1-0"]
[ECO "B92"]
[WhiteElo "2087"]
[BlackElo "1815"]
[Annotator "NA"]
[PlyCount "47"]
[EventDate "2019.07.19"]
[EventType "swiss"]
[EventCountry "IND"]
[SourceTitle "playchess.com"]
[Source "ChessBase"]
[SourceQuality "1"]
[TimeControl "40/5400+30:1800+30"]

{[%evp 10,41,22,32767,32767,32767,32767,32767,32767,32767,-16,-22,0,0,-12,-9,0,0,0,-18,30,0,0,0,36,8,244,258,245,248,510,289,336,360]} 1. e4 {[%emt 0:00:00]} c5 {[%emt 0:00:13]} 2. Nf3 {[%emt 0:00:00]} d6 {[%emt 0:00:05]} 3. d4 {[%emt 0:00:00]} cxd4 {[%emt 0:00:05]} 4. Nxd4 {[%emt 0:00:00]} Nf6 {[%emt 0:00:07]} 5. Nc3 {[%emt 0:00:02]} a6 {[%emt 0:00:17]} 6. Be2 {[%emt 0:00:06]} e5 {[%emt 0:00:31]} 7. Nb3 {[%emt 0:00:20]} Be7 {[%emt 0:00:25]} 8. O-O {[%emt 0:00:07]} O-O {[%emt 0:05:40]} 9. f4 {[%emt 0:04:23]} Nbd7 {[%emt 0:16:35]} 10. a4 {[%emt 0:07:12]} exf4 {[%emt 0:14:14]} 11. Bxf4 {[%emt 0:01:25]} Ne5 {[%emt 0:00:13]} 12. Kh1 {[%emt 0:02:09]} Be6 {[%emt 0:11:06]} 13. Nd4 {[%emt 0:02:40] B92: Sicilian Najdorf: 6 Be2} Qa5 {[%emt 0:04:07]} (13... Rc8 14. Nxe6 fxe6 15. Qb1 Rc6 16. Qa2 Qc8 17. Qb3 Kh8 18. Rad1 Re8 19. Bd3 Bd8 {½-½ (50) Schaefer,M (2375)-Nielsen,P (2651) Baden-Baden 2007}) 14. Qd2 $146 {[%emt 0:05:05]} ({Predecessor:} 14. Nf5 Bxf5 15. exf5 Rfd8 16. Bd2 Qc7 17. a5 Nc4 18. Bxc4 Qxc4 19. Be3 d5 20. Na4 Qe4 {1-0 (30) Boulahfa,H (2000)-Bijlsma,N (1869) Maastricht 2008}) 14... Rfc8 {[%emt 0:06:42]} 15. Rad1 {[%emt 0:10:51]} (15. Nd5 $5 Qd8 16. Nxe6 (16. Nxe7+ Qxe7 17. Bd3 Qc7 $11) 16... fxe6 17. Nxf6+ Bxf6 18. Rad1 $14) 15... Qb6 {[%emt 0:25:44]} 16. Qc1 {[%emt 0:09:25]} Nc4 {[%emt 0:04:40]} 17. b3 {[%emt 0:06:04]} Na5 $2 {[%emt 0:01:42] [#]} (17... Ne5 $11 {and Black stays safe.} 18. Nd5 (18. Nxe6 Rxc3 19. Nd4 Nxe4 $11) 18... Bxd5 19. exd5 Bf8) 18. Nd5 $1 {[%emt 0:02:52]} Bxd5 {[%emt 0:01:40]} 19. exd5 {[%emt 0:00:06]} Ne4 $2 {[%emt 0:01:10]} (19... Qc7 {keeps fighting.} 20. Bh6 gxh6 21. Qxh6 Qd8 22. Rxf6 Qf8) 20. Bf3 {[%emt 0:02:16]} (20. Qe3 $142) 20... Nc3 {[%emt 0:01:09]} 21. Rd3 $18 {[%emt 0:00:29]} Bf6 {[%emt 0:00:21]} 22. Qd2 {[%emt 0:00:46]} Na2 {[%emt 0:00:58]} 23. Nf5 {[%emt 0:01:52]} Rd8 {[%emt 0:02:11]} 24. c4 {[%emt 0:01:40]} 1-0

[Event "IND-ch Women 2019"]
[Site "Karaikkudi"]
[Date "2019.07.23"]
[Round "7.19"]
[White "Meenal Gupta"]
[Black "Pandey Srishti"]
[Result "1/2-1/2"]
[ECO "C92"]
[WhiteElo "2004"]
[BlackElo "1882"]
[Annotator "NA"]
[PlyCount "84"]
[EventDate "2019.07.19"]
[EventType "swiss"]
[EventCountry "IND"]
[SourceTitle "playchess.com"]
[Source "ChessBase"]
[SourceQuality "1"]
[TimeControl "40/5400+30:1800+30"]

{[%evp 14,68,27,37,32767,32767,32767,32767,32767,32767,32767,28,44,50,45,15,18,20,16,-33,31,44,51,-10,44,0,5,0,146,17,28,9,10,15,16,12,6,0,18,-19,14,10,3,0,24,29,46,27,32767,32767,32767,32767,32767,32767,32767,32767,64]} 1. e4 {[%emt 0:00:00]} e5 {[%emt 0:00:00]} 2. Nf3 {[%emt 0:00:00]} Nc6 {[%emt 0:00:00]} 3. Bb5 {[%emt 0:00:00]} a6 {[%emt 0:00:00]} 4. Ba4 {[%emt 0:00:00]} Nf6 {[%emt 0:00:00]} 5. O-O {[%emt 0:00:00]} b5 {[%emt 0:00:05]} 6. Bb3 {[%emt 0:00:07]} Be7 {[%emt 0:00:03]} 7. Re1 {[%emt 0:00:07]} d6 {[%emt 0:00:21]} 8. c3 {[%emt 0:00:06]} O-O {[%emt 0:00:06]} 9. h3 {[%emt 0:00:03]} Bb7 {[%emt 0:00:37]} 10. d4 {[%emt 0:00:18]} Re8 {[%emt 0:00:12]} 11. Nbd2 {[%emt 0:03:32]} exd4 {[%emt 0:00:18] C92: Closed Ruy Lopez: 9...Be6, Karpov and Flohr-Zaitsev Variations} (11... Bf8 12. a3 g6 13. Ba2 Bg7 14. b4 exd4 15. cxd4 a5 16. Rb1 axb4 17. d5 Ne5 18. Nxe5 dxe5 19. Rxb4 c6 20. dxc6 Bxc6 21. Qf3 Bf8 22. Rb1 {1-0 (33) Topalov,V (2740)-Mamedyarov,S (2790) Shamkir 2019}) 12. cxd4 {[%emt 0:00:51]} Na5 {[%emt 0:00:10]} 13. Bc2 $1 {[%emt 0:00:14]} Nd7 {[%emt 0:00:11]} 14. Nf1 {[%emt 0:17:23]} Bf6 {[%emt 0:00:05]} 15. Ng3 {[%emt 0:00:05]} g6 {[%emt 0:01:12]} 16. Bf4 {[%emt 0:00:25]} Nf8 {[%emt 0:04:01]} (16... c5 $11) 17. b3 {[%emt 0:10:03]} c5 {[%emt 0:08:54] [#]} 18. Be3 $146 {[%emt 0:05:12]} ({Better is Predecessor:} 18. d5 $14 Bxa1 19. Qxa1 {1-0 (36) Gopal,G (2575)-Narayanan,S (2459) Kolkata 2015}) 18... Nd7 {[%emt 0:07:50]} ({Better is} 18... Nc6 $11) 19. Rc1 {[%emt 0:02:18]} Nc6 {[%emt 0:00:46]} 20. Bb1 {[%emt 0:01:30]} Qe7 {[%emt 0:15:22] [#]} (20... Nxd4 $11 21. Nxd4 cxd4 22. Bxd4 Nc5) 21. Qd2 {[%emt 0:13:14]} ({White has to play} 21. e5 $1 $16 {[%cal Re5f6][%mdl 512]} dxe5 22. dxc5) 21... Rac8 {[%emt 0:02:17]} 22. d5 {[%emt 0:07:57]} Nce5 {[%emt 0:05:56]} 23. Nxe5 {[%emt 0:00:07]} Bxe5 {[%emt 0:00:16]} 24. f4 {[%emt 0:00:09]} Bg7 {[%emt 0:00:12]} 25. Re2 {[%emt 0:00:51]} b4 {[%emt 0:01:54]} 26. Qe1 {[%emt 0:04:08]} Nb6 {[%emt 0:06:51]} 27. Qf2 {[%emt 0:01:25]} Bc3 {[%emt 0:03:00]} 28. Rd1 {[%emt 0:04:54]} Nd7 {[%emt 0:05:55]} 29. Bd3 {[%emt 0:00:57]} Qh4 {[%emt 0:02:21]} 30. Kh2 {[%emt 0:00:49]} Nf6 {[%emt 0:16:01]} 31. Qf3 {[%emt 0:00:02]} h5 {[%emt 0:01:16]} 32. Kg1 {[%emt 0:00:02]} Nd7 {[%emt 0:00:39]} 33. Kh1 {[%emt 0:01:02]} Qe7 {[%emt 0:01:35]} 34. Bd2 {[%emt 0:02:56]} Bg7 $14 {[%emt 0:00:45]} 35. Rde1 {[%emt 0:01:55]} Qd8 {[%emt 0:02:00]} 36. Nf1 {[%emt 0:01:16]} Nf6 {[%emt 0:02:21]} 37. Ne3 {[%emt 0:00:53]} h4 {[%emt 0:00:02]} 38. Nf1 {[%emt 0:05:06]} Rc7 {[%emt 0:02:05]} 39. Bc4 {[%emt 0:01:32]} Rce7 {[%emt 0:03:06]} 40. Qd3 {[%emt 0:00:00]} Kh7 {[%emt 0:00:00]} 41. Qf3 {[%emt 0:16:34]} Kg8 {[%emt 0:06:05]} 42. Qd3 {[%emt 0:00:18]} Kh7 {[%emt 0:00:15]} 1/2-1/2

[Event "IND-ch Women 2019"]
[Site "Karaikkudi"]
[Date "2019.07.23"]
[Round "7.20"]
[White "Bindu, Saritha K."]
[Black "Sanskriti Goyal"]
[Result "0-1"]
[ECO "A48"]
[WhiteElo "1538"]
[BlackElo "1948"]
[Annotator "NA"]
[PlyCount "108"]
[EventDate "2019.07.19"]
[EventType "swiss"]
[EventCountry "IND"]
[SourceTitle "playchess.com"]
[Source "ChessBase"]
[SourceQuality "1"]
[TimeControl "40/5400+30:1800+30"]

1. d4 {[%emt 0:00:00]} Nf6 {[%emt 0:00:00]} 2. Nf3 {[%emt 0:00:02]} g6 {[%emt 0:00:07]} 3. Bf4 {[%emt 0:00:13]} Bg7 {[%emt 0:00:06]} 4. e3 {[%emt 0:00:13]} d6 {[%emt 0:00:06]} 5. h3 {[%emt 0:01:47]} O-O {[%emt 0:00:08]} 6. Be2 {[%emt 0:00:04]} Nbd7 {[%emt 0:00:04]} 7. O-O {[%emt 0:00:26]} Qe8 {[%emt 0:00:15]} 8. Bh2 {[%emt 0:02:45]} e5 {[%emt 0:00:50] A48: 1 d4 Nf6 2 Nf3 g6: Torre, London and Colle Systems} 9. d5 $146 {[%emt 0:04:27]} (9. a4 $14) ({Predecessor:} 9. Na3 exd4 10. exd4 Qd8 11. c4 Re8 12. Bd3 Nf8 13. Nb5 Bd7 14. Nc3 Qc8 15. Nd5 Ne6 16. Qd2 {1-0 (69) Naiditsch,A (2684)-Gupta,A (2626) Douglas 2016}) 9... e4 {[%emt 1:22:28]} 10. Ne1 {[%emt 0:00:30]} Qe7 11. c4 {[%emt 0:00:30]} Re8 {[%emt 0:01:00]} 12. Nc3 {[%emt 0:00:30]} a6 {[%emt 0:00:30]} 13. Nc2 {[%emt 0:00:30]} h5 {[%emt 0:00:30]} 14. Nd4 {[%emt 0:00:30]} h4 {[%emt 0:00:30]} 15. Rc1 {[%emt 0:00:30]} Nf8 {[%emt 0:00:30]} 16. b4 {[%emt 0:00:30]} N6h7 {[%emt 0:00:30]} 17. Nb3 {[%emt 0:00:30]} f5 {[%emt 0:00:30]} 18. c5 {[%emt 0:00:30]} Be5 {[%emt 0:00:30]} 19. Bxe5 {[%emt 0:00:30]} Qxe5 {[%emt 0:00:30]} 20. cxd6 {[%emt 0:00:30]} cxd6 {[%emt 0:00:30]} 21. Na4 {[%emt 0:00:30]} b5 {[%emt 0:00:30]} 22. Nb6 {[%emt 0:00:30]} Rb8 {[%emt 0:00:30]} 23. Nxc8 {[%emt 0:00:30]} Rexc8 {[%emt 0:00:30]} 24. Qd4 {[%emt 0:00:30]} Qxd4 {[%emt 0:00:30]} 25. Nxd4 {[%emt 0:00:30]} Rxc1 {[%emt 0:00:30]} 26. Rxc1 {[%emt 0:00:30]} Nd7 {[%emt 0:00:30]} 27. Rc7 {[%emt 0:00:30]} Nhf6 {[%emt 0:00:30]} 28. Nc6 {[%emt 0:00:30]} Ra8 {[%emt 0:00:30]} 29. Bd1 {[%emt 0:00:30]} Kg7 {[%emt 0:00:30]} 30. Bb3 {[%emt 0:00:30]} Kh6 {[%emt 0:00:30]} 31. f3 {[%emt 0:00:30]} exf3 {[%emt 0:00:30]} 32. gxf3 {[%emt 0:00:30]} Re8 {[%emt 0:00:30]} 33. Kf2 {[%emt 0:00:30]} Nb6 {[%emt 0:00:30]} 34. Ra7 {[%emt 0:00:30]} Nbxd5 {[%emt 0:00:30]} 35. Rxa6 {[%emt 0:00:30]} Rxe3 {[%emt 0:00:30]} 36. Nd4 {[%emt 0:00:30]} Rd3 {[%emt 0:00:30]} 37. Nxb5 {[%emt 0:00:30]} Nxb4 {[%emt 0:00:30]} 38. Rxd6 {[%emt 0:00:30]} Nfd5 {[%emt 0:00:30]} 39. Bc4 {[%emt 0:00:30]} Rd2+ {[%emt 0:00:30]} 40. Ke1 {[%emt 0:00:30]} Rb2 {[%emt 0:00:30]} 41. Bxd5 {[%emt 0:30:30]} Nd3+ {[%emt 0:30:30]} 42. Kf1 {[%emt 0:00:30]} Rxb5 {[%emt 0:00:30]} 43. Bf7 {[%emt 0:00:30]} Nf4 {[%emt 0:00:30]} 44. Kf2 {[%emt 0:00:30]} Kg5 {[%emt 0:00:30]} 45. Ke3 {[%emt 0:00:30]} Rb7 {[%emt 0:00:30]} 46. Bc4 {[%emt 0:00:30]} Nxh3 {[%emt 0:00:30]} 47. a4 {[%emt 0:00:30]} Rb4 {[%emt 0:00:30]} 48. Bf7 {[%emt 0:00:30]} Nf4 {[%emt 0:00:30]} 49. Be8 {[%emt 0:00:30]} Rb1 {[%emt 0:00:30]} 50. Rd2 {[%emt 0:00:30]} Re1+ {[%emt 0:00:30]} 51. Kf2 {[%emt 0:00:30]} Rxe8 {[%emt 0:00:30]} 52. Ra2 {[%emt 0:00:30]} h3 {[%emt 0:00:30]} 53. a5 {[%emt 0:00:30]} h2 {[%emt 0:00:30]} 54. Ra1 {[%emt 0:00:30]} Re2+ {[%emt 0:00:30]} 0-1

[Event "IND-ch Women 2019"]
[Site "Karaikkudi"]
[Date "2019.07.23"]
[Round "7.21"]
[White "Dhyana Patel"]
[Black "Abhirami Madabushi"]
[Result "0-1"]
[ECO "B52"]
[WhiteElo "1900"]
[BlackElo "1689"]
[Annotator "NA RC"]
[PlyCount "138"]
[EventDate "2019.07.19"]
[EventType "swiss"]
[EventCountry "IND"]
[SourceTitle "playchess.com"]
[Source "ChessBase"]
[SourceQuality "1"]
[TimeControl "40/5400+30:1800+30"]

1. e4 {[%emt 0:00:00]} c5 {[%emt 0:00:03]} 2. Nf3 {[%emt 0:00:00]} d6 {[%emt 0:00:04]} 3. Bb5+ {[%emt 0:00:17]} Bd7 {[%emt 0:00:06]} 4. Bxd7+ {[%emt 0:00:06]} Nxd7 {[%emt 0:00:04]} 5. O-O {[%emt 0:00:30]} Ngf6 {[%emt 0:00:12]} 6. Nc3 {[%emt 0:00:52]} g6 {[%emt 0:00:14] B52: Sicilian: Moscow Variation with 3...Bd7} 7. d4 {[%emt 0:02:05]} (7. d3 Bg7 8. h3 O-O 9. Be3 a6 10. Qd2 b5 11. Bh6 Rc8 12. Bxg7 Kxg7 13. Rae1 e6 14. Nd1 {1-0 (30) Delgado Ramirez,N (2615)-Perez Gormaz,M (2431) Antofagasta 2017}) 7... cxd4 {[%emt 0:00:06]} 8. Qxd4 {[%emt 0:00:15]} Bg7 {[%emt 0:00:25]} 9. Bg5 {[%emt 0:00:54]} O-O {[%emt 0:00:52]} 10. Qd2 {[%emt 0:00:10]} Rc8 {[%emt 0:00:20]} 11. Rfe1 {[%emt 0:01:30]} Nb6 $146 {[%emt 0:01:19]} ({Predecessor:} 11... Ng4 12. Nd5 Re8 13. Rad1 Nb6 14. c3 Nc4 15. Qe2 {0-1 (72) Sliwicki,D (2073)-Eggink,R (2162) Olsztyn 2013}) 12. Rad1 {[%emt 0:05:54]} Nc4 13. Qc1 {[%emt 0:00:30]} Qb6 14. Bxf6 {[%emt 0:00:30]} Bxf6 15. Nd5 {[%emt 0:00:30]} Qxb2 16. Qxb2 {[%emt 0:00:30]} Nxb2 17. Nxf6+ {[%emt 0:00:30]} exf6 18. Rb1 {[%emt 0:00:30]} Rxc2 19. Nd4 {[%emt 0:00:30]} Rc4 20. Nb5 {[%emt 0:00:30]} Nd3 21. Red1 {[%emt 0:00:30]} Nc5 22. Nxd6 {[%emt 0:00:30]} Ra4 23. f3 {[%emt 0:00:30]} b6 24. Rd2 {[%emt 0:00:30]} Ne6 25. Nb5 {[%emt 0:00:30]} Rd8 26. Rxd8+ {[%emt 0:00:30]} Nxd8 27. Nc3 {[%emt 0:00:30]} Ra3 28. Rb3 {[%emt 0:00:30]} Rxb3 29. axb3 {[%emt 0:00:30]} Nc6 30. Kf2 {[%emt 0:00:30]} Nd4 31. b4 {[%emt 0:00:30]} f5 32. exf5 {[%emt 0:00:30]} Nxf5 33. Ke2 {[%emt 0:00:30]} Kf8 34. f4 {[%emt 0:00:30]} Ke7 35. Kd3 {[%emt 0:00:30]} Kd7 36. Ke4 {[%emt 0:00:30]} Kc6 37. Ke5 {[%emt 0:00:30]} Ne3 38. g3 {[%emt 0:00:30]} Ng4+ 39. Kd4 {[%emt 0:00:30]} Nxh2 40. b5+ {[%emt 0:00:30]} Kb7 41. Ne4 {[%emt 0:30:30]} f5 42. Ng5 {[%emt 0:00:30]} h6 43. Nf7 {[%emt 0:00:30]} Nf1 44. Nxh6 {[%emt 0:00:30]} Nxg3 45. Nf7 {[%emt 0:00:30]} Ne4 46. Ne5 {[%emt 0:00:30]} g5 47. fxg5 {[%emt 0:00:30]} Nxg5 48. Nc4 {[%emt 0:00:30]} Nf7 $2 (48... f4 $19 {and Black stays clearly on top.} 49. Kc3 Kc7) 49. Ke3 $2 {[%emt 0:00:30]} (49. Kd5 $17) 49... Kc7 50. Kf4 {[%emt 0:00:30]} Nd6 51. Na3 {[%emt 0:00:30]} Kd7 52. Ke5 {[%emt 0:00:30] [#]} f4 $1 53. Kxf4 {[%emt 0:00:30]} Ke6 54. Nc2 {[%emt 0:00:30]} Kd5 55. Nb4+ {[%emt 0:00:30] [#]} Kc4 $1 56. Nc6 {[%emt 0:00:30]} Nxb5 57. Ke3 {[%emt 0:00:30]} a5 58. Kd2 {[%emt 0:00:30]} Kb3 59. Kc1 {[%emt 0:00:30]} Nc3 60. Nd4+ {[%emt 0:00:30]} Kc4 61. Nc6 {[%emt 0:00:30]} a4 62. Kb2 {[%emt 0:00:30]} b5 63. Ne5+ {[%emt 0:00:30]} Kd5 64. Nd3 {[%emt 0:00:30]} Kd4 65. Ne1 {[%emt 0:00:30]} Nd1+ 66. Kc2 {[%emt 0:00:30]} Ne3+ 67. Kb2 {[%emt 0:00:30]} b4 68. Nf3+ {[%emt 0:00:30]} Kc5 69. Ne5 {[%emt 0:00:30]} Nc4+ 0-1

[Event "IND-ch Women 2019"]
[Site "Karaikkudi"]
[Date "2019.07.24"]
[Round "8.8"]
[White "Potluri Saye Srreezza"]
[Black "Priyanka, Kumari"]
[Result "0-1"]
[ECO "E60"]
[WhiteElo "1999"]
[BlackElo "1991"]
[Annotator "NA RC"]
[PlyCount "84"]
[EventDate "2019.07.19"]
[EventType "swiss"]
[EventCountry "IND"]
[SourceTitle "playchess.com"]
[Source "ChessBase"]
[SourceQuality "1"]
[TimeControl "40/5400+30:1800+30"]

1. Nf3 {[%emt 0:00:00]} Nf6 {[%emt 0:00:10]} 2. d4 {[%emt 0:01:27]} g6 {[%emt 0:00:08]} 3. c4 {[%emt 0:00:06]} Bg7 {[%emt 0:00:08]} 4. g3 {[%emt 0:00:07]} d6 {[%emt 0:00:09]} 5. Bg2 {[%emt 0:00:07]} O-O {[%emt 0:00:37]} 6. O-O {[%emt 0:00:07]} Nbd7 {[%emt 0:01:05]} 7. Qc2 {[%emt 0:00:12]} e5 {[%emt 0:01:25]} 8. dxe5 {[%emt 0:00:31]} dxe5 {[%emt 0:01:33]} 9. Rd1 {[%emt 0:00:26]} Qe7 {[%emt 0:01:14]} 10. e4 {[%emt 0:00:33]} Nc5 {[%emt 0:05:09]} 11. Nc3 {[%emt 0:03:02]} c6 {[%emt 0:01:12]} 12. h3 {[%emt 0:01:28]} Re8 {[%emt 0:04:13]} 13. Be3 {[%emt 0:06:29]} h6 {[%emt 0:19:54]} 14. b4 {[%emt 0:12:49]} Ne6 {[%emt 0:08:43]} 15. c5 {[%emt 0:01:21]} Qc7 {[%emt 0:04:44]} 16. Na4 {[%emt 0:09:19]} Nd7 {[%emt 0:08:25]} 17. Nb2 {[%emt 0:11:26]} b5 {[%emt 0:03:50]} 18. a4 {[%emt 0:12:13]} Rb8 {[%emt 0:09:07]} 19. a5 {[%emt 0:01:10]} Ba6 {[%emt 0:01:30]} 20. h4 {[%emt 0:07:46]} Nf6 {[%emt 0:02:27]} 21. Bh3 {[%emt 0:01:30]} Bc8 {[%emt 0:00:57]} 22. Rd6 {[%emt 0:03:22]} Nd4 {[%emt 0:16:10]} 23. Bxd4 {[%emt 0:08:34]} exd4 {[%emt 0:00:27]} 24. Bxc8 {[%emt 0:00:38]} Qxc8 {[%emt 0:03:50]} 25. Re1 {[%emt 0:04:13]} Qg4 {[%emt 0:04:07]} 26. Nh2 {[%emt 0:00:08]} Qh3 {[%emt 0:00:33]} 27. Rxc6 {[%emt 0:00:21]} Nd5 {[%emt 0:00:51]} 28. Nd3 {[%emt 0:00:42]} Nc3 {[%emt 0:00:30]} 29. Nf4 {[%emt 0:01:19]} Qd7 {[%emt 0:00:18]} 30. Rd6 {[%emt 0:00:11]} Qb7 {[%emt 0:00:25]} 31. Nd5 {[%emt 0:02:43]} Be5 {[%emt 0:00:38]} 32. Nxc3 {[%emt 0:03:54]} Bxd6 {[%emt 0:00:18]} 33. Nd5 {[%emt 0:00:13]} Be5 {[%emt 0:00:24]} 34. Ng4 {[%emt 0:00:14]} Qc6 {[%emt 0:00:57]} 35. Qd2 {[%emt 0:04:31]} Bg7 {[%emt 0:00:10]} 36. Nxh6+ {[%emt 0:01:29]} Bxh6 {[%emt 0:00:16]} 37. Qxh6 {[%emt 0:00:08]} Rbd8 {[%emt 0:00:24]} 38. Qd2 {[%emt 0:01:08]} Re6 {[%emt 0:01:02]} 39. Kh2 {[%emt 0:00:59]} f5 {[%emt 0:00:32]} 40. f3 {[%emt 0:00:00]} fxe4 {[%emt 0:00:00]} 41. fxe4 {[%emt 0:01:30]} Qb7 {[%emt 0:09:18]} 42. Qxd4 {[%emt 0:04:55]} Rxd5 {[%emt 0:01:11]} 0-1

[Event "IND-ch Women 2019"]
[Site "Karaikkudi"]
[Date "2019.07.24"]
[Round "8.14"]
[White "Abhirami Madabushi"]
[Black "Varshini, V."]
[Result "0-1"]
[ECO "B90"]
[WhiteElo "1689"]
[BlackElo "2087"]
[Annotator "NA RC"]
[PlyCount "104"]
[EventDate "2019.07.19"]
[EventType "swiss"]
[EventCountry "IND"]
[SourceTitle "playchess.com"]
[Source "ChessBase"]
[SourceQuality "1"]
[TimeControl "40/5400+30:1800+30"]

1. e4 {[%emt 0:00:00]} c5 {[%emt 0:00:00]} 2. Nf3 {[%emt 0:00:00]} d6 {[%emt 0:00:00]} 3. d4 {[%emt 0:00:00]} cxd4 {[%emt 0:00:00]} 4. Nxd4 {[%emt 0:00:01]} Nf6 {[%emt 0:00:00]} 5. Nc3 {[%emt 0:00:04]} a6 {[%emt 0:00:03]} 6. f3 {[%emt 0:00:05]} e5 {[%emt 0:01:28]} 7. Nb3 {[%emt 0:00:11]} Be7 {[%emt 0:00:25]} 8. Be3 {[%emt 0:00:05]} O-O {[%emt 0:00:27]} 9. Qd2 {[%emt 0:00:08]} Be6 {[%emt 0:00:33]} 10. g4 {[%emt 0:00:27]} Nbd7 {[%emt 0:00:17]} 11. O-O-O {[%emt 0:00:51]} b5 {[%emt 0:00:14]} 12. g5 {[%emt 0:00:27]} Nh5 {[%emt 0:00:11]} 13. Kb1 {[%emt 0:00:14]} Nb6 {[%emt 0:07:50]} 14. Nd5 {[%emt 0:01:56]} Bxd5 {[%emt 0:24:22]} 15. exd5 {[%emt 0:00:17]} f5 {[%emt 0:02:47]} 16. gxf6 {[%emt 0:10:01]} Nxf6 {[%emt 0:06:28]} 17. Bxb6 {[%emt 0:00:22]} Qxb6 {[%emt 0:00:05]} 18. Na5 {[%emt 0:00:14]} e4 {[%emt 0:10:58]} 19. Nc6 {[%emt 0:00:24]} Rae8 {[%emt 0:00:07]} 20. Bh3 {[%emt 0:01:04]} exf3 {[%emt 0:02:11]} 21. Rde1 {[%emt 0:01:41]} Bd8 {[%emt 0:04:06]} 22. Be6+ {[%emt 0:00:29]} Kh8 {[%emt 0:00:14]} 23. Rhf1 {[%emt 0:00:51]} Ng8 {[%emt 0:07:43]} 24. Nxd8 {[%emt 0:01:00]} Qxd8 {[%emt 0:04:21]} 25. Re3 {[%emt 0:04:21]} Qg5 {[%emt 0:05:56]} 26. Qf2 {[%emt 0:00:19]} Rf6 {[%emt 0:02:44]} 27. Rxf3 {[%emt 0:01:54]} Ref8 {[%emt 0:00:07]} 28. Rxf6 {[%emt 0:00:10]} Rxf6 {[%emt 0:00:03]} 29. Qg1 {[%emt 0:02:19]} Qxg1 {[%emt 0:10:07]} 30. Rxg1 {[%emt 0:00:02]} Ne7 {[%emt 0:00:11]} 31. b3 {[%emt 0:00:11]} g6 {[%emt 0:00:16]} 32. Rg3 {[%emt 0:00:38]} b4 {[%emt 0:04:50]} 33. Rg4 {[%emt 0:01:30]} a5 {[%emt 0:00:05]} 34. Rc4 {[%emt 0:00:04]} Rf1+ {[%emt 0:00:18]} 35. Kb2 {[%emt 0:00:02]} Rd1 {[%emt 0:00:09]} 36. Rc6 {[%emt 0:02:18]} Nxd5 {[%emt 0:00:15]} 37. Rxd6 {[%emt 0:00:01]} Nc3 {[%emt 0:00:13]} 38. Rxd1 {[%emt 0:00:02]} Nxd1+ {[%emt 0:00:04]} 39. Kc1 {[%emt 0:00:05]} Nc3 {[%emt 0:00:16]} 40. Kb2 {[%emt 0:00:00]} Kg7 {[%emt 0:00:00]} 41. a3 {[%emt 0:00:32]} Kf6 {[%emt 0:11:55]} 42. Bg8 {[%emt 0:00:36]} h5 {[%emt 0:03:23]} 43. axb4 {[%emt 0:00:08]} axb4 {[%emt 0:00:04]} 44. Kc1 {[%emt 0:00:11]} g5 {[%emt 0:00:06]} 45. Kd2 {[%emt 0:00:20]} Ke5 {[%emt 0:01:01]} 46. Bf7 {[%emt 0:01:07]} h4 {[%emt 0:00:17]} 47. h3 {[%emt 0:01:45]} g4 {[%emt 0:01:29]} 48. Ke3 {[%emt 0:00:36]} gxh3 {[%emt 0:01:27]} 49. Kf3 {[%emt 0:00:07]} Ne4 {[%emt 0:00:41]} 50. Be8 {[%emt 0:01:01]} Ng3 {[%emt 0:01:03]} 51. Kg4 {[%emt 0:00:37]} h2 {[%emt 0:00:06]} 52. Bc6 {[%emt 0:00:03]} Ne4 {[%emt 0:00:11]} 0-1

[Event "IND-ch Women 2019"]
[Site "Karaikkudi"]
[Date "2019.07.24"]
[Round "8.18"]
[White "Smaraki, Mohanty"]
[Black "Saranya, J."]
[Result "0-1"]
[ECO "E68"]
[WhiteElo "1773"]
[BlackElo "2067"]
[Annotator "NA RC"]
[PlyCount "43"]
[EventDate "2019.07.19"]
[EventType "swiss"]
[EventCountry "IND"]
[SourceTitle "playchess.com"]
[Source "ChessBase"]
[SourceQuality "1"]
[TimeControl "40/5400+30:1800+30"]

1. c4 {[%emt 0:00:00]} Nf6 {[%emt 0:00:00]} 2. Nc3 {[%emt 0:00:00]} g6 {[%emt 0:00:00]} 3. e4 {[%emt 0:00:01]} d6 {[%emt 0:00:02]} 4. d4 {[%emt 0:00:25]} Bg7 {[%emt 0:00:06]} 5. g3 {[%emt 0:02:06]} O-O {[%emt 0:00:22]} 6. Bg2 {[%emt 0:00:03]} Nbd7 {[%emt 0:00:14]} 7. Nge2 {[%emt 0:00:28]} e5 {[%emt 0:00:32]} 8. O-O {[%emt 0:00:45]} exd4 {[%emt 0:00:13]} 9. Nxd4 {[%emt 0:00:05]} Re8 {[%emt 0:00:35]} 10. Re1 {[%emt 0:03:19]} a6 {[%emt 0:00:42]} 11. b3 {[%emt 0:07:54]} c5 {[%emt 0:06:26]} 12. Nde2 {[%emt 0:01:21]} Ne5 {[%emt 0:00:51]} 13. f4 {[%emt 0:01:04]} Nc6 {[%emt 0:00:22]} 14. h3 {[%emt 0:00:47]} Nxe4 {[%emt 0:10:57]} 15. Bxe4 {[%emt 0:00:07]} Rxe4 {[%emt 0:00:39]} 16. Nxe4 {[%emt 0:00:01]} Bxa1 {[%emt 0:00:10]} 17. Nxd6 {[%emt 0:07:40]} Bxh3 {[%emt 0:08:28]} 18. Be3 {[%emt 0:07:18]} Bd4 {[%emt 0:05:35]} 19. Bxd4 {[%emt 0:00:15]} cxd4 {[%emt 0:02:41]} 20. Ne4 {[%emt 0:00:29]} Bf5 {[%emt 0:06:00]} 21. Nf2 {[%emt 0:01:00]} h5 {[%emt 0:01:59]} 22. Qd2 {[%emt 0:02:23]} 0-1